Cogmind - Beta 13 @@@ ROGUE MODE // 2024.06.28 @ 21:57:21 Player: ZergFTW Result: Destroyed by D-53 Grenadier with Mini Grenade Launcher Performance ------------- Evolutions (0) 0 Regions Visited (4) 800 Robots Destroyed (41) 205 Value Destroyed (528) 528 Prototype IDs (25) 500 Alien Tech Used (0) 0 Bonus (0) 0 TOTAL SCORE: 2033 Bonus ------- None Cogmind --------- Core Integrity 0/250 Matter 300/300 Energy 100/100 System Corruption 0% Temperature Cool (0) Movement Treading (160) Location -9/Mines Parts ------- > --- POWER (1) -------- (None) > --- PROPULSION (2) --- Light Treads Light Treads > --- UTILITY (2) ------ Large Storage Unit Structural Scanner > --- WEAPON (2) ------- (None) > --- INVENTORY (15) --- Improved Ion Engine Light Treads Light Treads Wheel High-capacity Matter Pod (200) Sensor Array Sensor Array Signal Interpreter Targeting Computer Chronowheel Beam Cannon Beam Cannon Rocket Launcher Makeshift Hammer Peak State ------------ > --- POWER ------------ Improved Ion Engine > --- PROPULSION ------- Light Treads Light Treads > --- UTILITY ---------- Large Storage Unit Structural Scanner > --- WEAPON ----------- Beam Cannon Makeshift Hammer > --- INVENTORY -------- Improved Ion Engine Light Treads Light Treads Light Treads Wheel High-capacity Matter Pod Sensor Array Sensor Array Signal Interpreter Targeting Computer Chronowheel Beam Cannon Beam Cannon Beam Cannon Beam Cannon [Rating: 13] Favorites ----------- Power Improved Ion Engine Engine Improved Ion Engine Propulsion Light Treads Treads Light Treads Utility Structural Scanner Device Structural Scanner Storage Large Storage Unit Weapon Beam Cannon Energy Gun Particle Gun Energy Cannon Beam Cannon Ballistic Gun Light Assault Rifle Impact Weapon Heavy Hammer Build | -11 -10 -10 -10 -9 ------- Run | Yrd Mat Min Exi Min Slots Evolved . | . . . . . Power . | . . . . . Propulsion . | . . . . . Utility . | . . . . . Weapon . | . . . . . Parts Attached 27 | 9 12 . 1 5 Power 4 | 2 1 . . 1 Engine 4 | 2 1 . . 1 Core . | . . . . . Reactor . | . . . . . Propulsion 6 | 2 2 . . 2 Treads 6 | 2 2 . . 2 Leg . | . . . . . Wheel . | . . . . . Hover . | . . . . . Flight . | . . . . . Utility 6 | 2 4 . . . Device 2 | 1 1 . . . Storage 4 | 1 3 . . . Processor . | . . . . . Hackware . | . . . . . Protection . | . . . . . Artifact . | . . . . . Weapon 11 | 3 5 . 1 2 Energy Gun 4 | 2 2 . . . Energy Cannon 3 | . 1 . . 2 Ballistic Gun 1 | 1 . . . . Ballistic Cannon . | . . . . . Launcher . | . . . . . Special Weapon . | . . . . . Impact Weapon 3 | . 2 . 1 . Slashing Weapon . | . . . . . Piercing Weapon . | . . . . . Special Melee Weapon . | . . . . . Unidentified Prototypes . | . . . . . Parts Lost 4 | . . . . 4 Power 1 | . . . . 1 Propulsion 1 | . . . . 1 Utility . | . . . . . Weapon 2 | . . . . 2 Highest Loss Streak 4 | . . . . 4 To Critical Strikes . | . . . . . Average Slot Usage (%) 99 | . 99 100 100 97 Engine 13 | . 14 14 14 13 Treads 27 | . 27 28 28 28 Device 14 | . 14 14 14 14 Storage 14 | . 14 14 14 14 Energy Gun 5 | . 11 . . . Energy Cannon 11 | . 5 14 14 25 Impact Weapon 11 | . 11 14 14 . Naked Turns . | . . . . . Heaviest Build 94 | 12 94 34 34 34 Greatest Support 40 | 40 40 40 40 40 Greatest Overweight (x) 2 | . 2 . . . Average Overweight (x) . | . . . . . Largest Inventory Capacity 25 | 8 25 15 15 15 Average Capacity 13 | 7 11 15 15 15 Most Carried 15 | 5 15 15 15 15 Average Carried 11 | 2 9 15 15 14 Final Capacity 15 | 8 15 15 15 15 Final Carried 15 | 4 15 15 15 14 Class Distribution -------------------- 100% | Mutant Dominant Class ---------------- Mutant | -10/Materials Mutant | -10/Mines Mutant | -10/Exiles Mutant | -9/Mines Resources | -11 -10 -10 -10 -9 ----------- Run | Yrd Mat Min Exi Min Matter Collected 752 | 329 339 21 18 45 Remotely . | . . . . . Salvage Created 1035 | 182 462 19 30 342 Parts 57 | 14 16 3 . 24 Haulers Intercepted 2 | . 2 . . . Recyclers Shooed . | . . . . . Parts Field Recycled . | . . . . . Retrieved Matter . | . . . . . Parts Self-Destructed . | . . . . . Prevented . | . . . . . Kills | -11 -10 -10 -10 -9 ------- Run | Yrd Mat Min Exi Min Combat Hostiles Destroyed 23 | . 9 . 1 13 Melee 4 | . 4 . . . Guns 3 | . 3 . . . Cannons 11 | . 1 . . 10 AOE 1 | . 1 . . . Classes Destroyed 7 | 3 4 . . . Worker 6 | 2 3 1 . . Tunneler 4 | 3 . . . 1 Hauler 2 | . 2 . . . Recycler 3 | 1 1 . . 1 Watcher 3 | . 3 . . . Swarmer 16 | . 6 . . 10 Grunt 7 | . 3 . 1 3 Best Kill Streak 4 | 4 3 1 1 4 Combat Bots Only 4 | . 3 . 1 4 Max Kills in Single Turn 2 | 1 2 1 1 2 Gunslinging . | . . . . . Exploded 1 | . 1 . . . Melee 1 | . 1 . . . Uniques/NPCs Destroyed . | . . . . . Combat | -11 -10 -10 -10 -9 -------- Run | Yrd Mat Min Exi Min Hostile Shots Fired 117 | . 48 . . 69 Missed 23 | . 15 . . 8 Damage Taken 1537 | 29 388 . . 1120 Core 260 | . 37 . . 223 Absorbed by Shields . | . . . . . Regen/Repaired (Parts) 204 | . 204 . . . Core Remaining (%) 100 | 100 . . . . Volleys Fired 57 | 17 23 . . 17 Largest 2 | 2 2 . . 2 Hottest 125 | 80 125 . . 120 Shots Fired 109 | 33 42 . . 34 Gun 65 | 33 32 . . . Cannon 44 | . 10 . . 34 Launcher . | . . . . . Special . | . . . . . Kinetic . | . . . . . Thermal 79 | 16 29 . . 34 Explosive . | . . . . . Electromagnetic 30 | 17 13 . . . Robot Hit Streak 14 | 14 9 . . 4 Robot Miss Streak 7 | 4 4 . . 7 Penetration Max . | . . . . . Secondary Targets . | . . . . . Shots Hit Robots 81 | 22 39 2 1 17 Core Hits 35 | 7 15 1 . 12 Critical Kills 6 | . 4 1 . 1 Critical Parts Destroyed 3 | . . . 1 2 Critical Strikes 9 | . 4 1 1 3 Meltdown 1 | . . . . 1 Smash 8 | . 4 1 1 2 Melee Attacks 47 | . 24 2 13 8 Impact 47 | . 24 2 13 8 Slashing . | . . . . . Piercing . | . . . . . Sneak Attacks 9 | . 5 2 1 1 Combat Hostiles 2 | . . . 1 1 Follow-up Attacks . | . . . . . Damage Inflicted 2242 | 368 1267 111 84 412 Guns 541 | 279 262 . . . Cannons 380 | . 69 . . 311 Explosions 209 | 89 120 . . . Melee 1112 | . 816 111 84 101 Ramming . | . . . . . Kinetic . | . . . . . Thermal 855 | 192 352 . . 311 Explosive . | . . . . . Electromagnetic 275 | 176 99 . . . Impact 1112 | . 816 111 84 101 Slashing . | . . . . . Piercing . | . . . . . Highest Corruption . | . . . . . Average Corruption . | . . . . . Corruption Purged . | . . . . . Corruption Blocked . | . . . . . Overload Shots . | . . . . . Overflow Damage 535 | 5 305 26 84 115 Projectiles 14 | . . . . 14 Explosions 5 | 5 . . . . Melee 516 | . 305 26 84 101 Knockbacks 4 | . 3 . 1 . Impact 4 | . 3 . 1 . Kinetic . | . . . . . Secondary . | . . . . . Self-Inflicted Damage 56 | 29 27 . . . Shots 2 | 1 1 . . . Rammed . | . . . . . Targets Rammed . | . . . . . Kicked . | . . . . . Crushed . | . . . . . Highest Temperature 461 | 90 461 . . 400 Average Temperature 116 | 32 144 . . 138 Received Heat Transfer 147 | . 63 . . 84 Effects 6 | . 3 . . 3 Shutdowns 3 | . 2 . . 1 Interference 2 | . . . . 2 Matter Decay 1 | . 1 . . . Siege Activations . | . . . . . Robots Corrupted 1 | . 1 . . . Combat Hostiles . | . . . . . Parts Fried 13 | 1 10 . 1 1 Impact Corruptions 16 | . 11 1 2 2 Robots Melted 1 | . . . . 1 Combat Hostiles 1 | . . . . 1 Parts Melted 4 | . 2 . . 2 Heat Transferred 1624 | 375 583 . . 666 Parts Sabotaged . | . . . . . Parts Stolen . | . . . . . Parts Stripped . | . . . . . Power Chain Reactions 3 | 2 1 . . . Alert | -11 -10 -10 -10 -9 ------- Run | Yrd Mat Min Exi Min Peak Influence 325 | 30 222 8 . 325 Initial 19 | . 19 3 . . Average 88 | 9 82 7 . 204 Maximum Alert Level 1 | . 1 . . 1 Low Security (%) 90 | 100 95 100 . 62 Level 1 9 | . 4 . . 37 Level 2 . | . . . . . Level 3 . | . . . . . Level 4 . | . . . . . Level 5 . | . . . . . High Security . | . . . . . Max Security . | . . . . . Squads Dispatched 1 | . 1 . . . Investigation 1 | . 1 . . . Extermination . | . . . . . Reinforcement . | . . . . . Assault . | . . . . . Garrison . | . . . . . Intercept . | . . . . . Searches Triggered . | . . . . . Construction Impeded . | . . . . . Haulers Reinforced . | . . . . . Active Scanning Responses . | . . . . . Cargo Convoy Interrupts . | . . . . . Stealth | -11 -10 -10 -10 -9 --------- Run | Yrd Mat Min Exi Min Distress Signals . | . . . . . Communications Jammed . | . . . . . Distress Signals . | . . . . . Times Spotted 34 | . 20 . . 14 Peak Tracking Total 4 | . 3 . . 4 Tactical Retreats 2 | . 2 . . . Traps | -11 -10 -10 -10 -9 ------- Run | Yrd Mat Min Exi Min Traps Triggered 3 | . 3 . . . Indirectly . | . . . . . Trap Hack Attempts . | . . . . . Triggered . | . . . . . Disarmed . | . . . . . Reprogrammed . | . . . . . Reused . | . . . . . Traps Extracted . | . . . . . Installed . | . . . . . Triggered . | . . . . . Machines | -11 -10 -10 -10 -9 ---------- Run | Yrd Mat Min Exi Min Machines Disabled . | . . . . . Max in Single Turn . | . . . . . Machines Repaired . | . . . . . Machines Dismantled . | . . . . . Machines Sabotaged . | . . . . . Overloaded Fab Kills . | . . . . . Hacking | -11 -10 -10 -10 -9 --------- Run | Yrd Mat Min Exi Min Machines Accessed 10 | . 8 . 2 . Terminals 6 | . 6 . . . Fabricators . | . . . . . Repair Stations 1 | . 1 . . . Recycling Units 1 | . 1 . . . Scanalyzers . | . . . . . Garrison Access . | . . . . . Total Hacks 22 | . 19 . 3 . Successful 14 | . 11 . 3 . Failed 8 | . 8 . . . Catastrophic 1 | . 1 . . . Database Lockouts . | . . . . . Manual 9 | . 7 . 2 . Terminals 12 | . 12 . . . Fabricators . | . . . . . Repair Stations 5 | . 5 . . . Recycling Units 2 | . 2 . . . Scanalyzers . | . . . . . Garrison Access . | . . . . . Terminal Hacks 8 | . 5 . 3 . Record 2 | . . . 2 . Prototype ID Bank 1 | . 1 . . . Branch Access Points 1 | . 1 . . . Terminal Index 1 | . 1 . . . Locate Traps 1 | . 1 . . . Registered Components 1 | . 1 . . . Derelict Proto ID Bank 1 | . . . 1 . Fabricator Hacks . | . . . . . Repair Station Hacks 4 | . 4 . . . Scan Component 2 | . 2 . . . Repair 2 | . 2 . . . Recycling Unit Hacks 2 | . 2 . . . Report Inventory 1 | . 1 . . . Retrieve Components 1 | . 1 . . . Scanalyzer . | . . . . . Garrison Access Hacks . | . . . . . Unauthorized Hacks . | . . . . . Terminals . | . . . . . Fabricators . | . . . . . Repair Stations . | . . . . . Recycling Units . | . . . . . Scanalyzers . | . . . . . Garrison Access . | . . . . . Data Cores Recovered . | . . . . . Used . | . . . . . Hacking Detections 7 | . 7 . . . Full Trace Events . | . . . . . Feedback Events . | . . . . . Feedback Blocked . | . . . . . Robot Schematics Acquired . | . . . . . Robots Built . | . . . . . Authchips . | . . . . . Time . | . . . . . Total Robot Build Rating . | . . . . . Part Schematics Acquired . | . . . . . Parts Built . | . . . . . Authchips . | . . . . . Time . | . . . . . Total Part Build Rating . | . . . . . Parts Repaired 2 | . 2 . . . Time 52 | . 52 . . . Parts Recycled . | . . . . . Recycled Matter . | . . . . . Retrieved Matter . | . . . . . Retrieved Components 10 | . 10 . . . Parts Scanalyzed . | . . . . . Part Schematics Acquired . | . . . . . Parts Damaged . | . . . . . Bothacking | -11 -10 -10 -10 -9 ------------ Run | Yrd Mat Min Exi Min Used RIF Installer . | . . . . . Robots Hacked . | . . . . . Non-combat . | . . . . . Combat . | . . . . . Robot Hacks Applied . | . . . . . Relay Couplers Released . | . . . . . Fabnet Peak Effective % . | . . . . . Robots Rewired . | . . . . . Allies Hacked . | . . . . . Hacks Repelled . | . . . . . Allies | -11 -10 -10 -10 -9 -------- Run | Yrd Mat Min Exi Min Total Allies 2 | . . 2 . . Largest Group 2 | . . 2 2 . Highest-Rated Group 50 | . . 50 50 . Highest-Rated Ally 31 | . . 31 31 . Total Orders . | . . . . . Ally Attacks . | . . . . . Total Damage . | . . . . . Kills . | . . . . . Allies Corrupted . | . . . . . Allies Melted . | . . . . . Intel | -11 -10 -10 -10 -9 ------- Run | Yrd Mat Min Exi Min Robot Analysis Total . | . . . . . Derelict Logs Recovered . | . . . . . Drone Launches . | . . . . . Drone Recoveries . | . . . . . Exploration | -11 -10 -10 -10 -9 ------------- Run | Yrd Mat Min Exi Min Turns Passed 3320 | 244 1320 153 1271 332 Spaces Moved 1810 | 114 674 90 774 158 Core 8 | 8 . . . . Treads 1802 | 106 674 90 774 158 Legs . | . . . . . Wheels . | . . . . . Hover . | . . . . . Flight . | . . . . . Fastest Speed 50 | 50 160 160 160 160 Average Speed 159 | 152 160 160 160 160 Slowest Speed 320 | 160 320 160 160 160 Overloaded Moves . | . . . . . Propulsion Burnouts . | . . . . . Robots Hopped . | . . . . . Cave-ins Triggered . | . . . . . Exploration Rate (%) 51 | 7 97 32 95 27 Regions Visited 4 Branch Regions 3 Pre-discovered Areas 1 | . . . 1 . Known Exits Taken 1 | . 1 . . . Unknown Exits Taken 3 | 1 . 1 1 . Scrap Searched 1 | . . . . 1 Spaces Dug 3 | . 3 . . . Terrain Destroyed 9 | 4 5 . . . Melee 3 | . 3 . . . Projectile . | . . . . . AOE 6 | 4 2 . . . Terrain Rammed . | . . . . . Walls Destroyed . | . . . . . Machines Disabled . | . . . . . Actions | -11 -10 -10 -10 -9 --------- Run | Yrd Mat Min Exi Min Total 2066 | 149 832 96 794 195 Wait 73 | . 60 5 4 4 Move 1806 | 113 673 89 773 158 Hop . | . . . . . Pick Up 36 | 8 26 . 1 1 Fast Attach 6 | 5 1 . . . Attach 7 | 2 4 . . 1 Detach . | . . . . . Swap 14 | 2 7 . 1 4 Drop 20 | 2 14 . 2 2 Fire 57 | 17 23 . . 17 Melee 47 | . 24 2 13 8 Ram . | . . . . . Kick . | . . . . . Crush . | . . . . . Escape Stasis . | . . . . . Rewire . | . . . . . Trap . | . . . . . Miscellaneous . | . . . . . Route ------- -11/Scrapyard -10/Materials (discovered 4 exits: [*Mat x3] / *Min) -10/Mines (discovered 2 exits: [*Mat] / *Exi) -10/Exiles (discovered 2 exits: [*Min x2]) -9/Mines (discovered 1 exit: [*Mat]) History --------- Turn | Location | Event 10 | -11/Scrapyard | Discovered new exit (range 13) 245 | -11/Scrapyard | Entered Materials 329 | -10/Materials | Build established: Mutant 340 | -10/Materials | Discovered new exit (range 16) 526 | -10/Materials | Identified exit to Mines 563 | -10/Materials | Discovered new exit (range 6) 811 | -10/Materials | Discovered new exit (range 5) 1177 | -10/Materials | Discovered new exit (range 16) 1226 | -10/Materials | Repaired Lgt. Treads 1253 | -10/Materials | Repaired Lgt. Treads 1565 | -10/Materials | Entered Mines 1573 | -10/Mines | Discovered new exit (range 8) 1712 | -10/Mines | Deemed a non-threat by the Exiles lab entrance 1712 | -10/Mines | Discovered new exit (range 5) 1718 | -10/Mines | Entered Exiles 1718 | -10/Exiles | Found Exiles lab destroyed 1718 | -10/Exiles | Accompanied by 2 allies 1748 | -10/Exiles | Led the pair of lost Derelicts to a safe place 1800 | -10/Exiles | Discovered new exit (range 15) 2549 | -10/Exiles | Learned location of Zion (-7) 2647 | -10/Exiles | Discovered new exit (range 11) 2831 | -10/Exiles | Opened EX-Vault 2839 | -10/Exiles | Found Chronowheel 2989 | -10/Exiles | Entered Mines 3035 | -9/Mines | Discovered new exit (range 6) 3115 | -9/Mines | Received a Rocket Launcher from a helpful Derelict 3283 | -9/Mines | Assembled infested the area 3288 | -9/Mines | Assisted by a Guerilla fighting off Assembled 3310 | -9/Mines | Core integrity fell below 50% 3321 | -9/Mines | Core integrity fell below 20% 3321 | -9/Mines | Destroyed by D-53 Grenadier with Mini Grenade Launcher Last Messages --------------- 03297_ Plasma Injector explodes. 03297_ Beam Cannon destroyed. 03305_ Lgt. Treads destroyed. 03306_ Imp. Ion Engine destroyed. 03307_ U-05 Engineer lays Concrete. 03308_ The unstable cave ceiling collapses. 03308_ U-05 Engineer builds a Wall. 03310_ U-05 Engineer lays Concrete. 03313_ The unstable cave ceiling collapses. 03313_ U-05 Engineer lays Concrete. 03315_ Beam Cannon destroyed. 03319_ The unstable cave ceiling collapses. 03319_ Searching scrap... 03319_ Found Hrd. Light Armor Plating. 03319_ Found Lgt. Treads. 03319_ Found Imp. Hover Unit. 03319_ Found 14 Matter. 03319_ Found 21 Matter. 03320_ Acquired 5 matter. 03320_ The unstable cave ceiling collapses. Map ----- +----------------------------------------------------+ | ##???## ] ##???????????## %<* ##??? | | ######### ##### ##???????????## ##??? | | #########=##### ####?????????## ##??? | | ##?##%##### ####?????????## ##??? | | ###=#####* ##?????????##### #####??? | | ###[#####%####### ##??######?##### #####??? | | ###!%= !#######!################ ##?????? | | ###%##### #######]###### ######## ##?????? | | ###%=####*####""#%# # #### ##?????? | | ?###%####%###" *** "%"##?????? | | ?###*####!##" " ##?????? | | ??##=#### ##" #####?????? | | ??## #### ##" #####?????? | | ??## #### ## ##????????? | | ?? #####" # ###????????? | | ???"""?###### # # # ####????????? | | ???"""????#### # ####?????????? | | ???"""?????#### # ###??????????? | | ??? ??????#### dd ########?????? | | ?????????????###### # # #########????? | | ??????????????#### ##????? | | ????????????????## ##### ##????? | | ????????????????### ###### ??????? | | ????????????????#### ##??????????? | | ?????????????????#### ##??????????? | | ??????????????????### @ ! ##??????????? | | ???????????????????### % ##??????????? | | ???????????????????## ##??????????? | | ???????????????????#### ###??????????? | | ???????????????????#### $ ## ??????????? | | ?????????????????????##### ???????????? | | ?????????????????????##### ??????????? | | ????????????????????????####### ??????????? | | ????????????????????????####### ?????????? | | ???????????????????????????????? ????????? | | ????????????????????????????????? ???????? | | ?????????????????????????????????? ??????? | | ?????????????????????????????????? ???????? | | ??????????????????????????????????????????? | | ??????????????????????????????????????????? | | ??????????????????????????????????????????? | | ??????????????????????????????????????????? | | ??????????????????????????????????????????? | | ??????????????????????????????????????????? | | ??????????????????????????????????????????? | | ??????????????????????????????????????????? | | ??????????????????????????????????????????? | | ??????????????????????????????????????????? | | ??????????????????????????????????????????? | | ??????????????????????????????????????????? | +----------------------------------------------------+ Best States ------------- Heat Dissipation 25 Energy Generation 12 Energy Capacity 265 Matter Stores 300 Matter Capacity 300 Sight Range 16 Terrain Scan Density 10 Evasion (%) 40 Recoil Reduction 2 Item Schematics ----------------- None Robot Schematics ------------------ None Fabricated ------------ Nothing Alien Tech Used ----------------- None Achievements -------------- None Challenges ------------ None Game ------ Seed BiocellCloakingCompactor Manual? 0 Play Time 00:33:55 Cumulative 44.3 hours Start 2024.06.28 @ 17:06:32 End 2024.06.28 @ 21:57:21 Sessions 2 Manual Loads 0 Difficulty Rogue Special Mode None Game No. 34 Rogue 33 Adventurer 1 Explorer 0 Win Type - Total 0 Types 0/0/0/0/0/0/0/0/0 Lore% 21 Gallery% 26 Achievement% 25 Wizard Run 0 Options --------- Layout 1 ASCII 0 Keyboard 0 Movement Mouse Keybinds 0 Fullscreen 2 Font 24/Proggy Map View 76x35 Zoom Use 0% Tactical HUD 1 Map Filters NONE Filters NONE Steam 1 RUN: 3f5b03b7-7039-4b27-b4cb-f3eea2483953